[Event "Titled Tuesday Blitz December 27 Late 2022"]
[White "Kaganskiy, Gleb"]
[Black "Defend, Balint"]
[WhiteFideId "4132025"]
[BlackFideId "17004853"]
[WhiteElo "2205"]
[BlackElo "1673"]
[Result "0-1"]
[Round "06"]
[TimeControl "180+2"]
[Date "2022.12.27"]
[WhiteClock "0:00:16"]
[BlackClock "0:01:19"]

1. e4 {[%clk 0:03:00]}  c6 {[%clk 0:03:00]} 2. d4 {[%clk 0:03:00]}  d5 {[%clk 0:03:00]} 3. Nd2 {[%clk 0:02:56]}  dxe4 {[%clk 0:02:58]} 4. Nxe4 {[%clk 0:02:54]}  Nf6 {[%clk 0:02:59]} 5. Nxf6+ {[%clk 0:02:53]}  exf6 {[%clk 0:03:00]} 6. c3 {[%clk 0:02:51]}  Bd6 {[%clk 0:02:59]} 7. Bd3 {[%clk 0:02:50]}  h5 {[%clk 0:02:57]} 8. Ne2 {[%clk 0:02:45]}  h4 {[%clk 0:02:57]} 9. h3 {[%clk 0:02:45]}  O-O {[%clk 0:02:50]} 10. Qc2 {[%clk 0:02:42]}  Re8 {[%clk 0:02:48]} 11. Be3 {[%clk 0:02:38]}  g6 {[%clk 0:02:46]} 12. Bxg6 {[%clk 0:02:33]}  fxg6 {[%clk 0:02:43]} 13. Qxg6+ {[%clk 0:02:28]}  Kf8 {[%clk 0:02:43]} 14. Bh6+ {[%clk 0:02:21]}  Ke7 {[%clk 0:02:42]} 15. Qg7+ {[%clk 0:02:20]}  Ke6 {[%clk 0:02:39]} 16. d5+ {[%clk 0:02:13]}  Kxd5 {[%clk 0:02:29]} 17. O-O-O+ {[%clk 0:02:11]}  Kc5 {[%clk 0:02:24]} 18. Be3+ {[%clk 0:02:08]}  Kb5 {[%clk 0:02:19]} 19. a4+ {[%clk 0:01:58]}  Ka6 {[%clk 0:02:16]} 20. Qg6 {[%clk 0:01:42]}  b5 {[%clk 0:02:06]} 21. axb5+ {[%clk 0:01:40]}  cxb5 {[%clk 0:02:07]} 22. Bc5 {[%clk 0:01:31]}  Re6 {[%clk 0:01:51]} 23. Bxd6 {[%clk 0:01:11]}  Rxd6 {[%clk 0:01:48]} 24. Rxd6+ {[%clk 0:01:10]}  Qxd6 {[%clk 0:01:49]} 25. Rd1 {[%clk 0:01:10]}  Qb6 {[%clk 0:01:48]} 26. Kc2 {[%clk 0:01:02]}  Nc6 {[%clk 0:01:46]} 27. Ra1+ {[%clk 0:00:53]}  Kb7 {[%clk 0:01:44]} 28. Qf7+ {[%clk 0:00:51]}  Qc7 {[%clk 0:01:43]} 29. Qxf6 {[%clk 0:00:50]}  Bd7 {[%clk 0:01:41]} 30. Rd1 {[%clk 0:00:44]}  Re8 {[%clk 0:01:39]} 31. Nf4 {[%clk 0:00:37]}  Re5 {[%clk 0:01:20]} 32. Rd5 {[%clk 0:00:20]}  Nb4+ {[%clk 0:01:18]} 33. Kb3 {[%clk 0:00:17]}  Nxd5 {[%clk 0:01:18]} 34. Nxd5 {[%clk 0:00:16]}  Rxd5 {[%clk 0:01:19]} 0-1


[Site "https://www.chess.com"]

[Event "Titled Tuesday Blitz December 27 Late 2022"]
[White "Kavutskiy, Konstantin"]
[Black "Bryakin, Mikhail"]
[WhiteFideId "2026384"]
[BlackFideId "4165314"]
[WhiteElo "2414"]
[BlackElo "2455"]
[Result "0-1"]
[Round "06"]
[TimeControl "180+2"]
[Date "2022.12.27"]
[WhiteClock "0:00:01"]
[BlackClock "0:00:40"]

1. d4 {[%clk 0:03:00]}  g6 {[%clk 0:02:53]} 2. e4 {[%clk 0:02:59]}  Bg7 {[%clk 0:02:53]} 3. c4 {[%clk 0:02:58]}  c6 {[%clk 0:02:52]} 4. Nc3 {[%clk 0:02:57]}  d6 {[%clk 0:02:51]} 5. h3 {[%clk 0:02:48]}  a6 {[%clk 0:02:50]} 6. Nf3 {[%clk 0:02:47]}  b5 {[%clk 0:02:48]} 7. Be3 {[%clk 0:02:45]}  Nf6 {[%clk 0:02:48]} 8. a3 {[%clk 0:02:44]}  bxc4 {[%clk 0:02:45]} 9. Bxc4 {[%clk 0:02:44]}  d5 {[%clk 0:02:45]} 10. Bd3 {[%clk 0:02:29]}  dxe4 {[%clk 0:02:44]} 11. Nxe4 {[%clk 0:02:30]}  Nd5 {[%clk 0:02:44]} 12. O-O {[%clk 0:02:24]}  Nxe3 {[%clk 0:02:42]} 13. fxe3 {[%clk 0:02:25]}  O-O {[%clk 0:02:42]} 14. Rc1 {[%clk 0:02:20]}  a5 {[%clk 0:02:38]} 15. Bc4 {[%clk 0:02:06]}  Bf5 {[%clk 0:02:30]} 16. Nfg5 {[%clk 0:01:47]}  e6 {[%clk 0:02:09]} 17. Bd3 {[%clk 0:01:25]}  Nd7 {[%clk 0:02:05]} 18. Qe1 {[%clk 0:01:17]}  Rb8 {[%clk 0:01:58]} 19. Rc2 {[%clk 0:01:09]}  e5 {[%clk 0:01:52]} 20. g4 {[%clk 0:00:29]}  Bxe4 {[%clk 0:01:51]} 21. Nxe4 {[%clk 0:00:30]}  exd4 {[%clk 0:01:51]} 22. Bc4 {[%clk 0:00:27]}  Ne5 {[%clk 0:01:49]} 23. Ba2 {[%clk 0:00:25]}  Kh8 {[%clk 0:01:36]} 24. Kh1 {[%clk 0:00:19]}  d3 {[%clk 0:01:36]} 25. Rg2 {[%clk 0:00:18]}  Qe7 {[%clk 0:01:20]} 26. g5 {[%clk 0:00:18]}  f5 {[%clk 0:01:06]} 27. gxf6 {[%clk 0:00:13]}  Bxf6 {[%clk 0:01:07]} 28. Nxf6 {[%clk 0:00:10]}  Rxf6 {[%clk 0:01:08]} 29. Rxf6 {[%clk 0:00:10]}  Qxf6 {[%clk 0:01:09]} 30. Rf2 {[%clk 0:00:09]}  Qg5 {[%clk 0:01:03]} 31. Qc3 {[%clk 0:00:09]}  Qxe3 {[%clk 0:00:57]} 32. Kg2 {[%clk 0:00:08]}  Re8 {[%clk 0:00:53]} 33. b4 {[%clk 0:00:07]}  Qe4+ {[%clk 0:00:52]} 34. Kg1 {[%clk 0:00:07]}  axb4 {[%clk 0:00:49]} 35. axb4 {[%clk 0:00:07]}  Kg7 {[%clk 0:00:47]} 36. Rf7+ {[%clk 0:00:07]}  Kh6 {[%clk 0:00:42]} 37. Qd2+ {[%clk 0:00:06]}  g5 {[%clk 0:00:42]} 38. Rf6+ {[%clk 0:00:04]}  Ng6 {[%clk 0:00:43]} 39. Rf1 {[%clk 0:00:03]}  Nf4 {[%clk 0:00:40]} 40. Qf2 {[%clk 0:00:01]}  Nxh3+ {[%clk 0:00:40]} 0-1


[Site "https://www.chess.com"]

[Event "Titled Tuesday Blitz December 27 Late 2022"]
[White "Kho, Darrell"]
[Black "Desideri, Ricardo Maruchi"]
[WhiteFideId "1019317"]
[BlackFideId "2110440"]
[WhiteElo "2075"]
[BlackElo "1959"]
[Result "1-0"]
[Round "06"]
[TimeControl "180+2"]
[Date "2022.12.27"]
[WhiteClock "0:01:40"]
[BlackClock "0:00:34"]

1. e4 {[%clk 0:03:00]}  c5 {[%clk 0:02:54]} 2. Nf3 {[%clk 0:02:59]}  d6 {[%clk 0:02:54]} 3. d4 {[%clk 0:02:59]}  cxd4 {[%clk 0:02:55]} 4. Qxd4 {[%clk 0:03:00]}  Nf6 {[%clk 0:02:55]} 5. Be2 {[%clk 0:02:58]}  a6 {[%clk 0:02:54]} 6. O-O {[%clk 0:02:56]}  Nc6 {[%clk 0:02:54]} 7. Qe3 {[%clk 0:02:55]}  e6 {[%clk 0:02:51]} 8. Rd1 {[%clk 0:02:53]}  Qc7 {[%clk 0:02:52]} 9. c4 {[%clk 0:02:39]}  Be7 {[%clk 0:02:50]} 10. Nc3 {[%clk 0:02:35]}  b6 {[%clk 0:02:49]} 11. b3 {[%clk 0:02:31]}  Bb7 {[%clk 0:02:43]} 12. Ba3 {[%clk 0:02:25]}  O-O {[%clk 0:02:37]} 13. Rac1 {[%clk 0:02:22]}  Rfd8 {[%clk 0:02:22]} 14. Nd5 {[%clk 0:02:17]}  exd5 {[%clk 0:02:10]} 15. cxd5 {[%clk 0:02:16]}  Qd7 {[%clk 0:01:58]} 16. dxc6 {[%clk 0:02:14]}  Bxc6 {[%clk 0:01:58]} 17. Ne5 {[%clk 0:01:59]}  dxe5 {[%clk 0:00:39]} 18. Rxd7 {[%clk 0:01:59]}  Bxa3 {[%clk 0:00:40]} 19. Rxd8+ {[%clk 0:01:55]}  Rxd8 {[%clk 0:00:38]} 20. Rxc6 {[%clk 0:01:55]}  Bc5 {[%clk 0:00:34]} 21. Rxc5 {[%clk 0:01:40]} 1-0


[Site "https://www.chess.com"]

[Event "Titled Tuesday Blitz December 27 Late 2022"]
[White "Korchmar, Vasiliy"]
[Black "Movahed, Sina"]
[WhiteFideId "24131750"]
[BlackFideId "42520835"]
[WhiteElo "2438"]
[BlackElo "2340"]
[Result "1/2-1/2"]
[Round "06"]
[TimeControl "180+2"]
[Date "2022.12.27"]
[WhiteClock "0:00:44"]
[BlackClock "0:00:28"]

1. e4 {[%clk 0:03:00]}  c5 {[%clk 0:02:59]} 2. Nf3 {[%clk 0:03:00]}  d6 {[%clk 0:03:00]} 3. d4 {[%clk 0:03:01]}  cxd4 {[%clk 0:03:00]} 4. Nxd4 {[%clk 0:03:02]}  Nf6 {[%clk 0:03:01]} 5. Nc3 {[%clk 0:03:02]}  g6 {[%clk 0:03:02]} 6. Be3 {[%clk 0:03:02]}  a6 {[%clk 0:03:02]} 7. f3 {[%clk 0:03:02]}  h5 {[%clk 0:03:00]} 8. Qd2 {[%clk 0:03:02]}  Nbd7 {[%clk 0:03:00]} 9. O-O-O {[%clk 0:03:02]}  b5 {[%clk 0:03:00]} 10. Bd3 {[%clk 0:02:56]}  Bb7 {[%clk 0:03:00]} 11. Rhe1 {[%clk 0:02:55]}  Bg7 {[%clk 0:03:01]} 12. Kb1 {[%clk 0:02:54]}  Rc8 {[%clk 0:03:01]} 13. Bg5 {[%clk 0:02:42]}  O-O {[%clk 0:02:54]} 14. Bh6 {[%clk 0:02:34]}  e6 {[%clk 0:02:26]} 15. h3 {[%clk 0:02:29]}  Qb6 {[%clk 0:02:24]} 16. Bxg7 {[%clk 0:02:21]}  Kxg7 {[%clk 0:02:25]} 17. Nb3 {[%clk 0:01:57]}  Nc5 {[%clk 0:02:00]} 18. g4 {[%clk 0:01:55]}  Na4 {[%clk 0:01:57]} 19. Ne2 {[%clk 0:01:49]}  hxg4 {[%clk 0:01:49]} 20. hxg4 {[%clk 0:01:47]}  Rh8 {[%clk 0:01:50]} 21. Ng3 {[%clk 0:01:35]}  b4 {[%clk 0:01:33]} 22. Be2 {[%clk 0:01:23]}  d5 {[%clk 0:01:33]} 23. e5 {[%clk 0:01:11]}  Nd7 {[%clk 0:01:32]} 24. Qg5 {[%clk 0:01:09]}  Qd8 {[%clk 0:01:00]} 25. Nh5+ {[%clk 0:01:09]}  Kf8 {[%clk 0:00:53]} 26. Nf6 {[%clk 0:01:09]}  Kg7 {[%clk 0:00:52]} 27. Nh5+ {[%clk 0:00:58]}  Kg8 {[%clk 0:00:45]} 28. Nf6+ {[%clk 0:00:56]}  Kg7 {[%clk 0:00:28]} 29. Nh5+ {[%clk 0:00:44]} 1/2-1/2


[Site "https://www.chess.com"]

[Event "Titled Tuesday Blitz December 27 Late 2022"]
[White "Kozin, Yuri"]
[Black "Petrovic, Aleksa"]
[WhiteFideId "4129920"]
[BlackFideId "967629"]
[WhiteElo "2251"]
[BlackElo "2332"]
[Result "0-1"]
[Round "06"]
[TimeControl "180+2"]
[Date "2022.12.27"]
[WhiteClock "0:00:28"]
[BlackClock "0:00:06"]

1. e4 {[%clk 0:03:00]}  e6 {[%clk 0:02:58]} 2. d4 {[%clk 0:03:00]}  d5 {[%clk 0:02:58]} 3. Nd2 {[%clk 0:03:01]}  c5 {[%clk 0:02:55]} 4. Ngf3 {[%clk 0:03:00]}  Nc6 {[%clk 0:02:55]} 5. exd5 {[%clk 0:03:00]}  exd5 {[%clk 0:02:55]} 6. Bb5 {[%clk 0:03:01]}  Nf6 {[%clk 0:02:54]} 7. O-O {[%clk 0:03:00]}  Be7 {[%clk 0:02:54]} 8. dxc5 {[%clk 0:03:00]}  Bxc5 {[%clk 0:02:54]} 9. Nb3 {[%clk 0:02:58]}  Bb6 {[%clk 0:02:53]} 10. Bg5 {[%clk 0:02:48]}  O-O {[%clk 0:02:50]} 11. Bh4 {[%clk 0:02:45]}  h6 {[%clk 0:02:44]} 12. c3 {[%clk 0:02:44]}  g5 {[%clk 0:02:22]} 13. Bg3 {[%clk 0:02:44]}  Ne4 {[%clk 0:02:21]} 14. c4 {[%clk 0:02:32]}  Nxg3 {[%clk 0:02:08]} 15. hxg3 {[%clk 0:02:31]}  dxc4 {[%clk 0:02:01]} 16. Bxc4 {[%clk 0:02:31]}  Qf6 {[%clk 0:01:58]} 17. Qc2 {[%clk 0:02:12]}  Bf5 {[%clk 0:01:49]} 18. Qc3 {[%clk 0:02:12]}  Qxc3 {[%clk 0:01:48]} 19. bxc3 {[%clk 0:02:13]}  Na5 {[%clk 0:01:44]} 20. Bd5 {[%clk 0:02:08]}  Rac8 {[%clk 0:01:27]} 21. Nxa5 {[%clk 0:02:05]}  Bxa5 {[%clk 0:01:28]} 22. c4 {[%clk 0:02:05]}  Bc3 {[%clk 0:00:39]} 23. Rac1 {[%clk 0:01:58]}  Bb2 {[%clk 0:00:39]} 24. Rcd1 {[%clk 0:01:54]}  Rc5 {[%clk 0:00:37]} 25. Nd4 {[%clk 0:01:52]}  Bxd4 {[%clk 0:00:36]} 26. Rxd4 {[%clk 0:01:53]}  b5 {[%clk 0:00:31]} 27. cxb5 {[%clk 0:01:49]}  Rxb5 {[%clk 0:00:32]} 28. Bc4 {[%clk 0:01:49]}  Rc5 {[%clk 0:00:30]} 29. Bb3 {[%clk 0:01:48]}  Kg7 {[%clk 0:00:30]} 30. Ra4 {[%clk 0:01:45]}  a5 {[%clk 0:00:27]} 31. Re1 {[%clk 0:01:41]}  Kf6 {[%clk 0:00:18]} 32. Rd1 {[%clk 0:01:36]}  Re8 {[%clk 0:00:17]} 33. Rd6+ {[%clk 0:01:36]}  Kg7 {[%clk 0:00:15]} 34. Ra6 {[%clk 0:01:32]}  Re1+ {[%clk 0:00:15]} 35. Kh2 {[%clk 0:01:32]}  g4 {[%clk 0:00:12]} 36. Rc4 {[%clk 0:01:05]}  Rce5 {[%clk 0:00:05]} 37. Rc7 {[%clk 0:00:57]}  Be6 {[%clk 0:00:05]} 38. Rxf7+ {[%clk 0:00:34]}  Bxf7 {[%clk 0:00:04]} 39. Bxf7 {[%clk 0:00:35]}  Kxf7 {[%clk 0:00:04]} 40. Rxh6 {[%clk 0:00:34]}  Re8 {[%clk 0:00:04]} 41. Rh7+ {[%clk 0:00:33]}  Kg6 {[%clk 0:00:04]} 42. Rh4 {[%clk 0:00:34]}  Kg5 {[%clk 0:00:04]} 43. Rh7 {[%clk 0:00:33]}  R1e6 {[%clk 0:00:05]} 44. f4+ {[%clk 0:00:28]}  gxf3 {[%clk 0:00:03]} 45. gxf3 {[%clk 0:00:27]}  Rh6+ {[%clk 0:00:04]} 46. Rxh6 {[%clk 0:00:27]}  Kxh6 {[%clk 0:00:05]} 47. Kh3 {[%clk 0:00:28]}  Re2 {[%clk 0:00:06]} 0-1


[Site "https://www.chess.com"]

[Event "Titled Tuesday Blitz December 27 Late 2022"]
[White "Krasteva, Beloslava"]
[Black "Eggleston, Thomas A"]
[WhiteFideId "2922029"]
[BlackFideId "412139"]
[WhiteElo "2220"]
[BlackElo "2215"]
[Result "1-0"]
[Round "06"]
[TimeControl "180+2"]
[Date "2022.12.27"]
[WhiteClock "0:00:47"]
[BlackClock "0:00:25"]

1. e4 {[%clk 0:03:00]}  e6 {[%clk 0:03:00]} 2. d4 {[%clk 0:02:59]}  d5 {[%clk 0:03:00]} 3. e5 {[%clk 0:02:59]}  c5 {[%clk 0:03:00]} 4. c3 {[%clk 0:02:58]}  Nc6 {[%clk 0:03:01]} 5. Nf3 {[%clk 0:02:58]}  Qb6 {[%clk 0:03:01]} 6. Bd3 {[%clk 0:02:58]}  cxd4 {[%clk 0:02:53]} 7. O-O {[%clk 0:02:58]}  Nh6 {[%clk 0:02:52]} 8. cxd4 {[%clk 0:02:43]}  Nf5 {[%clk 0:02:52]} 9. Bxf5 {[%clk 0:02:42]}  exf5 {[%clk 0:02:53]} 10. Nc3 {[%clk 0:02:41]}  Be6 {[%clk 0:02:54]} 11. Ne2 {[%clk 0:02:31]}  h6 {[%clk 0:02:52]} 12. Nf4 {[%clk 0:02:28]}  g5 {[%clk 0:02:51]} 13. Nh5 {[%clk 0:02:28]}  O-O-O {[%clk 0:02:49]} 14. a4 {[%clk 0:02:22]}  g4 {[%clk 0:02:48]} 15. a5 {[%clk 0:02:15]}  Qb5 {[%clk 0:02:37]} 16. Ne1 {[%clk 0:02:04]}  Be7 {[%clk 0:02:29]} 17. Nc2 {[%clk 0:02:03]}  Bg5 {[%clk 0:02:27]} 18. b4 {[%clk 0:01:47]}  Kb8 {[%clk 0:02:21]} 19. Rb1 {[%clk 0:01:44]}  Bxc1 {[%clk 0:02:13]} 20. Qxc1 {[%clk 0:01:42]}  Qc4 {[%clk 0:02:08]} 21. Qd2 {[%clk 0:01:40]}  f4 {[%clk 0:02:00]} 22. Nxf4 {[%clk 0:01:33]}  Bf5 {[%clk 0:02:00]} 23. Ne3 {[%clk 0:01:32]}  Qxd4 {[%clk 0:01:53]} 24. Qxd4 {[%clk 0:01:32]}  Nxd4 {[%clk 0:01:53]} 25. Rbd1 {[%clk 0:01:32]}  Ne6 {[%clk 0:01:49]} 26. Nfxd5 {[%clk 0:01:28]}  Be4 {[%clk 0:01:33]} 27. Nf6 {[%clk 0:01:26]}  Bc6 {[%clk 0:01:27]} 28. Nexg4 {[%clk 0:01:23]}  Nf4 {[%clk 0:01:22]} 29. f3 {[%clk 0:01:20]}  h5 {[%clk 0:01:18]} 30. Ne3 {[%clk 0:01:16]}  Nd3 {[%clk 0:01:18]} 31. Nc4 {[%clk 0:01:01]}  Nxb4 {[%clk 0:01:10]} 32. Nd6 {[%clk 0:00:58]}  Nc2 {[%clk 0:01:02]} 33. Rb1 {[%clk 0:00:53]}  Ne3 {[%clk 0:00:53]} 34. Rfc1 {[%clk 0:00:52]}  Ka8 {[%clk 0:00:51]} 35. a6 {[%clk 0:00:51]}  Rxd6 {[%clk 0:00:38]} 36. axb7+ {[%clk 0:00:47]}  Bxb7 {[%clk 0:00:37]} 37. exd6 {[%clk 0:00:48]}  Rd8 {[%clk 0:00:32]} 38. d7 {[%clk 0:00:48]}  a6 {[%clk 0:00:25]} 39. Rc7 {[%clk 0:00:47]} 1-0


[Site "https://www.chess.com"]

[Event "Titled Tuesday Blitz December 27 Late 2022"]
[White "Lutz, Igor Oscar"]
[Black "Antonova, Nadezhda"]
[WhiteFideId "2110806"]
[BlackFideId "14700182"]
[WhiteElo "1969"]
[BlackElo "1945"]
[Result "0-1"]
[Round "06"]
[TimeControl "180+2"]
[Date "2022.12.27"]
[WhiteClock "0:00:28"]
[BlackClock "0:00:17"]

1. d4 {[%clk 0:02:59]}  Nf6 {[%clk 0:02:57]} 2. c4 {[%clk 0:02:59]}  g6 {[%clk 0:02:56]} 3. Nc3 {[%clk 0:02:59]}  Bg7 {[%clk 0:02:52]} 4. e4 {[%clk 0:02:59]}  d6 {[%clk 0:02:52]} 5. Nf3 {[%clk 0:02:59]}  O-O {[%clk 0:02:42]} 6. Be2 {[%clk 0:02:59]}  e5 {[%clk 0:02:41]} 7. Be3 {[%clk 0:02:59]}  Na6 {[%clk 0:02:36]} 8. Qc2 {[%clk 0:02:39]}  Ng4 {[%clk 0:02:25]} 9. Bg5 {[%clk 0:02:38]}  f6 {[%clk 0:02:24]} 10. Bd2 {[%clk 0:02:29]}  Nh6 {[%clk 0:02:15]} 11. a3 {[%clk 0:02:16]}  Nf7 {[%clk 0:02:05]} 12. d5 {[%clk 0:01:59]}  f5 {[%clk 0:02:02]} 13. h4 {[%clk 0:01:50]}  Nc5 {[%clk 0:01:53]} 14. b4 {[%clk 0:01:46]}  Nxe4 {[%clk 0:01:53]} 15. Nxe4 {[%clk 0:01:41]}  fxe4 {[%clk 0:01:54]} 16. Qxe4 {[%clk 0:01:34]}  Bf5 {[%clk 0:01:53]} 17. Qe3 {[%clk 0:01:33]}  a5 {[%clk 0:00:56]} 18. O-O {[%clk 0:00:58]}  axb4 {[%clk 0:00:51]} 19. axb4 {[%clk 0:00:50]}  Rxa1 {[%clk 0:00:50]} 20. Rxa1 {[%clk 0:00:51]}  e4 {[%clk 0:00:42]} 21. Nd4 {[%clk 0:00:51]}  Qxh4 {[%clk 0:00:37]} 22. Nxf5 {[%clk 0:00:49]}  gxf5 {[%clk 0:00:35]} 23. Bc3 {[%clk 0:00:37]}  Ne5 {[%clk 0:00:30]} 24. Ra7 {[%clk 0:00:33]}  Bh6 {[%clk 0:00:22]} 25. Qg3+ {[%clk 0:00:27]}  Qxg3 {[%clk 0:00:19]} 26. fxg3 {[%clk 0:00:28]}  Be3+ {[%clk 0:00:17]} 0-1


[Site "https://www.chess.com"]

[Event "Titled Tuesday Blitz December 27 Late 2022"]
[White "Marjanovic, Annamaria"]
[Black "Kazakouski, Valery"]
[WhiteFideId "750930"]
[BlackFideId "13507443"]
[WhiteElo "2273"]
[BlackElo "2539"]
[Result "0-1"]
[Round "06"]
[TimeControl "180+2"]
[Date "2022.12.27"]
[WhiteClock "0:00:09"]
[BlackClock "0:01:00"]

1. c4 {[%clk 0:03:00]}  e6 {[%clk 0:02:58]} 2. g3 {[%clk 0:03:00]}  d5 {[%clk 0:02:59]} 3. Bg2 {[%clk 0:03:00]}  Nf6 {[%clk 0:03:00]} 4. Nf3 {[%clk 0:03:00]}  dxc4 {[%clk 0:03:01]} 5. Qa4+ {[%clk 0:03:00]}  c6 {[%clk 0:03:01]} 6. Qxc4 {[%clk 0:02:59]}  b5 {[%clk 0:03:02]} 7. Qc2 {[%clk 0:02:54]}  Bb7 {[%clk 0:03:02]} 8. O-O {[%clk 0:02:52]}  Nbd7 {[%clk 0:03:02]} 9. d4 {[%clk 0:02:52]}  c5 {[%clk 0:03:01]} 10. dxc5 {[%clk 0:02:50]}  Bxc5 {[%clk 0:03:01]} 11. Nc3 {[%clk 0:02:45]}  Rc8 {[%clk 0:03:01]} 12. Qd1 {[%clk 0:02:38]}  Qb6 {[%clk 0:02:58]} 13. Bf4 {[%clk 0:02:14]}  O-O {[%clk 0:02:57]} 14. Ne5 {[%clk 0:02:06]}  Rfd8 {[%clk 0:02:55]} 15. Nxd7 {[%clk 0:01:50]}  Rxd7 {[%clk 0:02:54]} 16. Qb3 {[%clk 0:01:50]}  Bxg2 {[%clk 0:02:47]} 17. Kxg2 {[%clk 0:01:51]}  b4 {[%clk 0:02:41]} 18. Na4 {[%clk 0:01:48]}  Qb7+ {[%clk 0:02:41]} 19. f3 {[%clk 0:01:41]}  Bf8 {[%clk 0:02:36]} 20. Rac1 {[%clk 0:01:37]}  Nd5 {[%clk 0:02:26]} 21. Bd2 {[%clk 0:01:18]}  Rxc1 {[%clk 0:02:24]} 22. Rxc1 {[%clk 0:01:18]}  Qb5 {[%clk 0:02:22]} 23. Kf1 {[%clk 0:01:05]}  h5 {[%clk 0:02:12]} 24. a3 {[%clk 0:00:47]}  a5 {[%clk 0:02:08]} 25. axb4 {[%clk 0:00:45]}  axb4 {[%clk 0:02:09]} 26. Rc4 {[%clk 0:00:35]}  Ra7 {[%clk 0:01:52]} 27. Nc3 {[%clk 0:00:32]}  bxc3 {[%clk 0:01:42]} 28. Qxb5 {[%clk 0:00:27]}  cxd2 {[%clk 0:01:42]} 29. Rd4 {[%clk 0:00:25]}  Ra1+ {[%clk 0:01:39]} 30. Kg2 {[%clk 0:00:22]}  d1=Q {[%clk 0:01:30]} 31. Rxd1 {[%clk 0:00:21]}  Rxd1 {[%clk 0:01:31]} 32. Qa4 {[%clk 0:00:20]}  Rd2 {[%clk 0:01:28]} 33. Kf1 {[%clk 0:00:19]}  Rxb2 {[%clk 0:01:27]} 34. Qa8 {[%clk 0:00:19]}  g6 {[%clk 0:01:25]} 35. h4 {[%clk 0:00:18]}  Ne7 {[%clk 0:01:18]} 36. Qa7 {[%clk 0:00:16]}  Nf5 {[%clk 0:01:17]} 37. Kf2 {[%clk 0:00:15]}  Bg7 {[%clk 0:01:14]} 38. Qa8+ {[%clk 0:00:15]}  Kh7 {[%clk 0:01:14]} 39. Kf1 {[%clk 0:00:15]}  Nxg3+ {[%clk 0:01:13]} 40. Kg2 {[%clk 0:00:14]}  Nf5 {[%clk 0:01:14]} 41. Kf1 {[%clk 0:00:14]}  Bf6 {[%clk 0:01:09]} 42. Qa7 {[%clk 0:00:13]}  Kg7 {[%clk 0:01:09]} 43. Qa8 {[%clk 0:00:13]}  Nxh4 {[%clk 0:01:08]} 44. Ke1 {[%clk 0:00:13]}  Nf5 {[%clk 0:01:07]} 45. Qa7 {[%clk 0:00:11]}  h4 {[%clk 0:01:05]} 46. e4 {[%clk 0:00:10]}  Ng3 {[%clk 0:01:01]} 47. f4 {[%clk 0:00:09]}  Re2+ {[%clk 0:00:59]} 48. Kd1 {[%clk 0:00:10]}  Rxe4 {[%clk 0:01:00]} 49. f5 {[%clk 0:00:09]}  exf5 {[%clk 0:01:00]} 0-1


[Site "https://www.chess.com"]

[Event "Titled Tuesday Blitz December 27 Late 2022"]
[White "Moral Garcia, Serafin"]
[Black "Fernandez Garcia, Gumersindo"]
[WhiteFideId "2201925"]
[BlackFideId "24516740"]
[WhiteElo "2238"]
[BlackElo "2160"]
[Result "1-0"]
[Round "06"]
[TimeControl "180+2"]
[Date "2022.12.27"]
[WhiteClock "0:00:37"]
[BlackClock "0:00:08"]

1. c4 {[%clk 0:02:59]}  e5 {[%clk 0:02:58]} 2. Nc3 {[%clk 0:02:59]}  Nf6 {[%clk 0:02:57]} 3. Nf3 {[%clk 0:02:59]}  e4 {[%clk 0:02:53]} 4. Ng5 {[%clk 0:02:58]}  b5 {[%clk 0:02:53]} 5. cxb5 {[%clk 0:02:55]}  d5 {[%clk 0:02:50]} 6. d3 {[%clk 0:02:44]}  h6 {[%clk 0:02:48]} 7. Nh3 {[%clk 0:02:44]}  Bb4 {[%clk 0:02:40]} 8. Qb3 {[%clk 0:02:31]}  Qe7 {[%clk 0:02:21]} 9. Nf4 {[%clk 0:02:26]}  d4 {[%clk 0:02:10]} 10. a3 {[%clk 0:02:15]}  Ba5 {[%clk 0:02:08]} 11. Qa4 {[%clk 0:02:15]}  Bxc3+ {[%clk 0:01:45]} 12. bxc3 {[%clk 0:02:15]}  dxc3 {[%clk 0:01:46]} 13. dxe4 {[%clk 0:02:02]}  O-O {[%clk 0:01:43]} 14. f3 {[%clk 0:01:57]}  a6 {[%clk 0:01:37]} 15. bxa6 {[%clk 0:01:54]}  Bxa6 {[%clk 0:01:33]} 16. Qc2 {[%clk 0:01:54]}  Qc5 {[%clk 0:00:59]} 17. Nd3 {[%clk 0:01:53]}  Qa5 {[%clk 0:00:59]} 18. Be3 {[%clk 0:01:50]}  Nc6 {[%clk 0:00:57]} 19. g4 {[%clk 0:01:47]}  Rab8 {[%clk 0:00:57]} 20. Kf2 {[%clk 0:01:43]}  h5 {[%clk 0:00:56]} 21. g5 {[%clk 0:01:39]}  Nh7 {[%clk 0:00:56]} 22. h4 {[%clk 0:01:38]}  Bxd3 {[%clk 0:00:51]} 23. Qxd3 {[%clk 0:01:34]}  Rfd8 {[%clk 0:00:47]} 24. Qc4 {[%clk 0:01:33]}  Ne5 {[%clk 0:00:46]} 25. Qc5 {[%clk 0:01:33]}  Qxc5 {[%clk 0:00:43]} 26. Bxc5 {[%clk 0:01:33]}  Rb2 {[%clk 0:00:43]} 27. Be3 {[%clk 0:01:22]}  c2 {[%clk 0:00:40]} 28. Bh3 {[%clk 0:01:15]}  Nc4 {[%clk 0:00:39]} 29. Rhc1 {[%clk 0:01:12]}  Nxe3 {[%clk 0:00:35]} 30. Kxe3 {[%clk 0:01:12]}  Rb3+ {[%clk 0:00:35]} 31. Kf2 {[%clk 0:01:11]}  Rb2 {[%clk 0:00:34]} 32. e5 {[%clk 0:01:08]}  Rdb8 {[%clk 0:00:32]} 33. Bf5 {[%clk 0:01:05]}  R8b5 {[%clk 0:00:23]} 34. Rxc2 {[%clk 0:00:59]}  Rxc2 {[%clk 0:00:23]} 35. Bxc2 {[%clk 0:00:59]}  Rxe5 {[%clk 0:00:24]} 36. a4 {[%clk 0:01:00]}  Ra5 {[%clk 0:00:23]} 37. Rb1 {[%clk 0:00:59]}  Nf8 {[%clk 0:00:22]} 38. Rb7 {[%clk 0:00:54]}  c5 {[%clk 0:00:22]} 39. Rb5 {[%clk 0:00:52]}  Rxb5 {[%clk 0:00:20]} 40. axb5 {[%clk 0:00:52]}  Nd7 {[%clk 0:00:20]} 41. Ke3 {[%clk 0:00:51]}  Nb6 {[%clk 0:00:20]} 42. Ke4 {[%clk 0:00:51]}  Kf8 {[%clk 0:00:19]} 43. f4 {[%clk 0:00:48]}  Ke7 {[%clk 0:00:18]} 44. e3 {[%clk 0:00:47]}  g6 {[%clk 0:00:17]} 45. Ke5 {[%clk 0:00:47]}  c4 {[%clk 0:00:14]} 46. e4 {[%clk 0:00:47]}  Kd7 {[%clk 0:00:09]} 47. Kf6 {[%clk 0:00:45]}  Ke8 {[%clk 0:00:09]} 48. f5 {[%clk 0:00:44]}  gxf5 {[%clk 0:00:09]} 49. exf5 {[%clk 0:00:44]}  Kf8 {[%clk 0:00:09]} 50. Ke5 {[%clk 0:00:42]}  Ke7 {[%clk 0:00:09]} 51. f6+ {[%clk 0:00:42]}  Kf8 {[%clk 0:00:09]} 52. Kd6 {[%clk 0:00:43]}  c3 {[%clk 0:00:09]} 53. Kc6 {[%clk 0:00:42]}  Nc4 {[%clk 0:00:09]} 54. b6 {[%clk 0:00:42]}  Ne3 {[%clk 0:00:07]} 55. Be4 {[%clk 0:00:40]}  c2 {[%clk 0:00:04]} 56. Bxc2 {[%clk 0:00:40]}  Nxc2 {[%clk 0:00:05]} 57. b7 {[%clk 0:00:40]}  Nb4+ {[%clk 0:00:05]} 58. Kb6 {[%clk 0:00:40]}  Nd5+ {[%clk 0:00:05]} 59. Kc5 {[%clk 0:00:37]}  Nxf6 {[%clk 0:00:03]} 60. gxf6 {[%clk 0:00:36]}  Kg8 {[%clk 0:00:04]} 61. b8=Q+ {[%clk 0:00:36]}  Kh7 {[%clk 0:00:05]} 62. Qf8 {[%clk 0:00:35]}  Kg6 {[%clk 0:00:05]} 63. Qg7+ {[%clk 0:00:36]}  Kf5 {[%clk 0:00:05]} 64. Qxf7 {[%clk 0:00:36]}  Kg4 {[%clk 0:00:05]} 65. Qg6+ {[%clk 0:00:36]}  Kxh4 {[%clk 0:00:06]} 66. f7 {[%clk 0:00:37]}  Kh3 {[%clk 0:00:07]} 67. f8=Q {[%clk 0:00:37]}  h4 {[%clk 0:00:08]} 68. Qf3+ {[%clk 0:00:37]} 1-0


[Site "https://www.chess.com"]